fUSD/lending_fUSD_20241222
["ID","MTS","AMOUNT","RATE_DAILY","PERIOD"]
[346280064,1734863444016,-500.0,0.00019726,2]
[346280065,1734863444026,-1859.35,0.00019726,2]
[346280066,1734863444036,-500.0,0.00019726,2]
[346280067,1734863444046,-500.0,0.00019726,2]
[346280068,1734863444056,-500.0,0.00019726,2]
[346280069,1734863444066,-500.0,0.00019726,2]
[346280070,1734863444076,-500.0,0.00019726,2]
[346280071,1734863444085,-646.4,0.00019726,2]
[346280072,1734863444095,-500.0,0.00019726,2]
[346280073,1734863444105,-864.92,0.00019726,2]
[346280074,1734863444115,-521.75,0.00019726,2]
[346280075,1734863444124,-500.0,0.00019726,2]
[346280076,1734863444135,-500.0,0.00019726,2]
[346280077,1734863444145,-615.18,0.00019726,2]
[346280078,1734863444155,-500.0,0.00019726,2]
[346280079,1734863444165,-500.0,0.00019726,2]
[346280080,1734863444175,-756.63,0.00019726,2]
[346280081,1734863444185,-500.0,0.00019726,2]
[346280082,1734863444195,-17340.36,0.00019726,2]
[346280083,1734863444204,-940.52,0.00019726,2]
[346280084,1734863444214,-500.0,0.00019726,2]
[346280085,1734863444224,-416.17603312,0.00019726,2]
[346280086,1734863444234,-877.88,0.00019726,2]
[346280087,1734863444243,-586.25,0.00019726,2]
[346280088,1734863444253,-500.0,0.00019726,2]
[346280089,1734863444263,-1053.77,0.00019726,2]
[346280090,1734863444273,-150.0,0.00019731,2]
[346280091,1734863444283,-150.0,0.00019733,2]
[346280092,1734863444292,-150.0,0.00019736,2]
[346280093,1734863444302,-150.0,0.00019739,2]
[346280094,1734863444311,-150.0,0.0001974,2]
[346280095,1734863444321,-150.0,0.0001974,2]
[346280096,1734863444332,-207.0,0.0001974,2]
[346280097,1734863444341,-150.0,0.00019743,2]
[346280098,1734863444351,-150.0,0.00019745,2]
[346280099,1734863444361,-150.0,0.00019747,2]
[346280100,1734863444370,-150.0,0.00019757,2]
[346280101,1734863444380,-150.0,0.0001976,2]
[346280102,1734863444390,-150.0,0.0001976,2]
[346280103,1734863444400,-150.0,0.00019762,2]
[346280104,1734863444409,-150.0,0.00019762,2]
[346280105,1734863444419,-150.0,0.00019762,2]
[346280106,1734863444429,-150.0,0.00019763,2]
[346280107,1734863444439,-377.51170326,0.00019764,2]
[346280108,1734863444449,-150.0,0.00019767,2]
[346280109,1734863444459,-150.0,0.0001977,2]
[346280110,1734863444469,-150.0,0.0001977,2]
[346280111,1734863444480,-150.0,0.00019772,2]
[346280112,1734863444490,-500.7387074,0.00019773,2]
[346280113,1734863444500,-150.0,0.00019773,2]
[346280114,1734863444510,-150.0,0.0001978,2]
[346280115,1734863444524,-150.0,0.0001978,2]
[346280116,1734863444534,-193339.75846026,0.0001978,2]
[346280117,1734863444543,-150.0,0.00019784,2]
[346280118,1734863444555,-150.0,0.00019789,2]
[346280119,1734863444564,-150.0,0.0001979,2]
[346280120,1734863444574,-150.0,0.0001979,2]
[346280121,1734863444585,-704.66312219,0.0001979,2]
[346280122,1734863444595,-150.0,0.00019792,2]
[346280123,1734863444605,-150.0,0.00019793,2]
[346280124,1734863444615,-150.0,0.00019797,2]
[346280125,1734863444624,-150.0,0.00019798,2]
[346280126,1734863444635,-150.0,0.00019799,2]
[346280127,1734863444644,-15416.27835564,0.000198,2]
[346280128,1734863444654,-30000.0,0.000198,2]
[346280129,1734863444663,-109751.92442705,0.000198,2]
[346280130,1734863444673,-366.53119324,0.000198,2]
[346280131,1734863444683,-3000.0,0.000198,2]
[346280132,1734863444693,-188.93317513,0.000198,2]
[346280133,1734863444703,-150.0,0.00019806,2]
[346280134,1734863444712,-150.0,0.00019806,2]
[346280135,1734863444722,-20006.69702293,0.0001981,2]
[346280136,1734863444731,-150.0,0.00019814,2]
[346280137,1734863444741,-150.0,0.00019814,2]
[346280138,1734863444751,-150.0,0.00019816,2]
[346280139,1734863444760,-150.0,0.00019817,2]
[346280140,1734863444770,-300.0,0.00019824,2]
[346280141,1734863444780,-150.0,0.00019828,2]
[346280142,1734863444788,-150.0,0.00019829,2]
[346280143,1734863444798,-150.0,0.00019829,2]
[346280144,1734863444808,-150.0,0.00019832,2]
[346280145,1734863444817,-150.0,0.00019832,2]
[346280146,1734863444826,-150.0,0.00019835,2]
[346280147,1734863444836,-150.0,0.00019836,2]
[346280148,1734863444846,-500.0,0.0001984,2]
[346280149,1734863444855,-150.0,0.00019842,2]
[346280150,1734863444864,-150.0,0.00019843,2]
[346280151,1734863444874,-150.0,0.00019846,2]
[346280152,1734863444883,-150.0,0.00019848,2]
[346280153,1734863444892,-366.53119324,0.0001985,2]
[346280154,1734863444901,-150.0,0.00019853,2]
[346280155,1734863444910,-150.0,0.00019855,2]
[346280156,1734863444920,-1613.0,0.00019859,2]
[346280157,1734863444930,-150.0,0.0001986,2]
[346280158,1734863444940,-150.0,0.00019861,2]
[346280159,1734863444950,-150.0,0.0001987,2]
[346280160,1734863444959,-228.05332278,0.00019873,2]
[346280161,1734863444969,-500.0,0.00019873,2]
[346280162,1734863444979,-160.07081366,0.00019873,2]
[346280163,1734863444989,-300.0,0.00019877,2]
[346280164,1734863444999,-150.0,0.00019887,2]
[346280165,1734863445008,-150.0,0.00019887,2]
[346280166,1734863445018,-150.0,0.00019887,2]
[346280167,1734863445029,-150.0,0.00019889,2]
[346280168,1734863445039,-4811.8,0.0001989,2]
[346280169,1734863445048,-157.37,0.0001989,2]
[346280170,1734863445058,-2010.0,0.0001989,2]
[346280171,1734863445068,-1265.0,0.0001989,2]
[346280172,1734863445077,-635.0,0.0001989,2]
[346280173,1734863445087,-150.0,0.0001989,2]
[346280174,1734863445097,-3886.0,0.0001989,2]
[346280175,1734863445107,-13756.0,0.0001989,2]
[346280176,1734863445117,-150.00000001,0.0001989,4]
[346280177,1734863445126,-150.0,0.00019892,2]
[346280178,1734863445137,-150.0,0.00019896,2]
[346280179,1734863445146,-150.0,0.00019897,2]
[346280180,1734863445156,-500.0,0.00019899,2]
[346280181,1734863445166,-4811.8,0.00019899,2]
[346280182,1734863445175,-4811.8,0.00019899,2]
[346280183,1734863445184,-4811.8,0.00019899,2]
[346280184,1734863445194,-4811.8,0.00019899,2]
[346280185,1734863445204,-4811.8,0.00019899,2]
[346280186,1734863445213,-4811.8,0.00019899,2]
[346280187,1734863445223,-4811.8,0.00019899,2]
[346280188,1734863445233,-174.14235606,0.000199,2]
[346280189,1734863445242,-174.14235606,0.000199,2]
[346280190,1734863445252,-174.14235606,0.000199,2]
[346280191,1734863445261,-174.14235606,0.000199,2]
[346280192,1734863445270,-174.14235606,0.000199,2]
[346280193,1734863445280,-174.14235606,0.000199,2]
[346280194,1734863445290,-174.14235606,0.000199,2]
[346280195,1734863445300,-174.14235606,0.000199,2]
[346280196,1734863445309,-174.14235606,0.000199,2]
[346280197,1734863445319,-174.14235606,0.000199,2]
[346280198,1734863445329,-174.14235606,0.000199,2]
[346280199,1734863445338,-174.14235606,0.000199,2]
[346280200,1734863445348,-174.14235606,0.000199,2]
[346280201,1734863445357,-174.14235606,0.000199,2]
[346280202,1734863445367,-174.14235606,0.000199,2]
[346280203,1734863445376,-174.14235606,0.000199,2]
[346280204,1734863445387,-174.14235606,0.000199,2]
[346280205,1734863445396,-174.14235606,0.000199,2]
[346280206,1734863445406,-174.14235606,0.000199,2]
[346280207,1734863445416,-174.14,0.000199,2]
[346280208,1734863445426,-1641886.89570579,0.000199,2]
[346280209,1734863445436,-32237.82097473,0.000199,2]
[346280210,1734863445445,-2983.81,0.000199,2]
[346280211,1734863445454,-261.21353409,0.000199,2]
[346280212,1734863445463,-261.21353409,0.000199,2]
[346280213,1734863445473,-261.21353409,0.000199,2]
[346280214,1734863445483,-261.21353409,0.000199,2]
[346280215,1734863445493,-261.21353409,0.000199,2]
[346280216,1734863445502,-261.21353409,0.000199,2]
[346280217,1734863445511,-261.21353409,0.000199,2]
[346280218,1734863445525,-261.21353409,0.000199,2]
[346280219,1734863445534,-261.21353409,0.000199,2]
[346280220,1734863445543,-261.21353409,0.000199,2]
[346280221,1734863445553,-261.21353409,0.000199,2]
[346280222,1734863445563,-261.21353409,0.000199,2]
[346280223,1734863445573,-261.21353409,0.000199,2]
[346280224,1734863445582,-261.21353409,0.000199,2]
[346280225,1734863445593,-261.21353409,0.000199,2]
[346280226,1734863445603,-261.21353409,0.000199,2]
[346280227,1734863445612,-261.21353409,0.000199,2]
[346280228,1734863445622,-261.21353409,0.000199,2]
[346280229,1734863445632,-261.21353409,0.000199,2]
[346280230,1734863445642,-261.21,0.000199,2]
[346280231,1734863445652,-366.53119324,0.000199,2]
[346280232,1734863445661,-1123.0,0.000199,2]
[346280233,1734863445670,-150.0,0.00019901,2]
[346280234,1734863445680,-150.0,0.00019905,2]
[346280235,1734863445691,-150.0,0.00019908,2]
[346280237,1734863445700,-150.0,0.00019914,2]
[346280238,1734863445749,-150.0,0.00019915,2]
[346280239,1734863445758,-204.71391,0.00019922,2]
[346280240,1734863445768,-300.0,0.00019925,2]
[346280241,1734863445777,-150.0,0.00019925,2]
[346280242,1734863445786,-150.0,0.00019926,2]
[346280243,1734863445796,-170.0,0.00019929,2]
[346280244,1734863445806,-171.81,0.00019929,2]
[346280245,1734863445815,-151.0,0.00019929,2]
[346280246,1734863445825,-151.0,0.00019929,2]
[346280247,1734863445834,-151.0,0.00019929,2]
[346280248,1734863445843,-151.0,0.00019929,2]
[346280249,1734863445853,-151.0,0.00019929,2]
[346280250,1734863445866,-151.0,0.00019929,2]
[346280251,1734863445880,-151.0,0.00019929,2]
[346280252,1734863445891,-151.0,0.00019929,2]
[346280253,1734863445902,-151.0,0.00019929,2]
[346280254,1734863445912,-151.0,0.00019929,2]
[346280255,1734863445922,-153.67,0.00019929,2]
[346280256,1734863445932,-150.0,0.0001993,2]
[346280257,1734863445942,-300.0,0.00019935,2]
[346280258,1734863445951,-150.0,0.00019937,2]
[346280259,1734863445961,-150.0,0.0001994,2]
[346280260,1734863445970,-150.0,0.00019944,2]
[346280261,1734863445980,-150.0,0.00019949,2]
[346280262,1734863445989,-150.0,0.00019951,2]
[346280263,1734863445999,-150.0,0.00019953,2]
[346280264,1734863446009,-150.0,0.00019954,2]
[346280265,1734863446018,-150.0,0.00019955,2]
[346280266,1734863446027,-150.0,0.00019957,2]
[346280267,1734863446037,-49284.99050018,0.0001996,2]
[346280268,1734863446046,-150.0,0.00019963,2]
[346280269,1734863446055,-150.0,0.00019965,2]
[346280270,1734863446064,-150.0,0.00019966,2]
[346280271,1734863446074,-150.0,0.00019967,2]
[346280272,1734863446083,-552.17852518,0.0001997,2]
[346280273,1734863446093,-150.0,0.00019972,2]
[346280274,1734863446102,-500.0,0.00019973,2]
[346280275,1734863446112,-150.0,0.00019974,2]
[346280276,1734863446121,-150.0,0.00019979,2]
[346280277,1734863446130,-150.0,0.00019979,2]
[346280278,1734863446143,-150.0,0.00019979,2]
[346280279,1734863446152,-3449478.16404267,0.0001998,2]
[346280280,1734863446162,-150.0,0.00019981,2]
[346280281,1734863446171,-150.0,0.00019986,2]
[346280282,1734863446181,-150.0,0.00019987,2]
[346280283,1734863446190,-21311.78300961,0.0001999,2]
[346280284,1734863446199,-150.0,0.00019994,2]
[346280285,1734863446208,-150.0,0.00019996,2]
[346280286,1734863446217,-783.4803143,0.00019996,2]
[346280287,1734863446226,-999.8247094,0.00019996,2]
[346280288,1734863446235,-1216.1691045,0.00019996,2]
[346280289,1734863446245,-1432.5134996,0.00019996,2]
[346280290,1734863446253,-1648.8578947,0.00019996,2]
[346280291,1734863446263,-1865.2022898,0.00019996,2]
[346280292,1734863446272,-1170.5871757,0.00019996,2]
[346280293,1734863446281,-1493.8243647,0.00019996,2]
[346280294,1734863446291,-1817.0615537,0.00019996,2]
[346280295,1734863446300,-2140.2987427,0.00019996,2]
[346280296,1734863446308,-2463.5359317,0.00019996,2]
[346280297,1734863446317,-2786.7731207,0.00019996,2]
[346280298,1734863446326,-150.0,0.00019996,2]
[346280299,1734863446336,-281464.05707426,0.00019997,2]
[346280300,1734863446345,-150.0,0.00019998,2]
[346280301,1734863446355,-150.0,0.00019998,2]
[346280302,1734863446364,-300.0,0.00019999,2]
[346280303,1734863446374,-675.33170954,0.00019999,2]
[346280304,1734863446383,-300.0,0.00019999,2]
[346280305,1734863446393,-666.0,0.00019999,2]
[346280306,1734863446403,-479.57265574,0.00019999,5]
[346280307,1734863446412,-507.27,0.00019999,2]
[346280308,1734863446422,-500.0,0.00019999,2]
[346280309,1734863446431,-500.0,0.00019999,2]
[346280310,1734863446441,-500.0,0.00019999,2]
[346280311,1734863446450,-1168.78143036,0.00019999,5]
[346280312,1734863446459,-150.0,0.00019999,2]
[346280313,1734863446468,-500.0,0.00019999,2]
[346280314,1734863446477,-607.42,0.00019999,2]
[346280315,1734863446486,-500.0,0.00019999,2]
[346280316,1734863446495,-658.61,0.00019999,2]
[346280317,1734863446504,-523.73,0.00019999,2]
[346280318,1734863446514,-500.0,0.00019999,2]
[346280319,1734863446525,-1185.06,0.00019999,2]
[346280320,1734863446535,-500.0,0.00019999,2]
[346280321,1734863446544,-500.0,0.00019999,2]
[346280322,1734863446553,-1122.75,0.00019999,2]
[346280323,1734863446572,-4811.8,0.00019999,2]
[346280324,1734863446583,-4811.8,0.00019999,2]
[346280325,1734863446593,-4811.8,0.00019999,2]
[346280326,1734863446603,-635.97632583,0.00019999,2]
[346280327,1734863446612,-4811.8,0.00019999,2]
[346280328,1734863446622,-4811.8,0.00019999,2]
[346280329,1734863446631,-4811.8,0.00019999,2]
[346280330,1734863446641,-4811.8,0.00019999,2]
[346280331,1734863446651,-4811.8,0.00019999,2]
[346280332,1734863446660,-4811.8,0.00019999,2]
[346280333,1734863446670,-4811.8,0.00019999,2]
[346280334,1734863446679,-4811.8,0.00019999,2]
[346280335,1734863446689,-4811.8,0.00019999,2]
[346280336,1734863446698,-4811.99,0.00019999,2]
[346280337,1734863446707,-982.94,0.00019999,2]
[346280338,1734863446717,-7888.81,0.00019999,2]
[346280339,1734863446726,-891.44,0.00019999,2]
[346280340,1734863446736,-94880.87474971,0.00019999,2]
[346280341,1734863446746,-582.91,0.00019999,2]
[346280342,1734863446755,-500.0,0.00019999,2]
[346280343,1734863446764,-500.0,0.00019999,2]
[346280344,1734863446774,-500.0,0.00019999,2]
[346280345,1734863446783,-721.07,0.00019999,2]
[346280346,1734863446793,-19797.69,0.00019999,2]
[346280347,1734863446802,-500.0,0.00019999,2]
[346280348,1734863446811,-500.0,0.00019999,2]
[346280349,1734863446821,-500.0,0.00019999,2]
[346280350,1734863446830,-989.05,0.00019999,2]
[346280351,1734863446840,-500.0,0.00019999,2]
[346280352,1734863446849,-1105.12,0.00019999,2]
[346280353,1734863446858,-691.73,0.00019999,2]
[346280354,1734863446867,-500.0,0.00019999,2]
[346280355,1734863446877,-5607.45,0.00019999,2]
[346280356,1734863446886,-500.0,0.00019999,2]
[346280357,1734863446896,-1008.65,0.00019999,2]
[346280358,1734863446905,-500.0,0.00019999,2]
[346280359,1734863446914,-500.0,0.00019999,2]
[346280360,1734863446923,-1000.0,0.00019999,2]
[346280361,1734863446933,-639.58,0.00019999,2]
[346280362,1734863446943,-500.0,0.00019999,2]
[346280363,1734863446952,-500.0,0.00019999,2]
[346280364,1734863446961,-1088.07,0.00019999,2]
[346280365,1734863446971,-3090.46620517,0.00019999,2]
[346280366,1734863446980,-2712199.64261185,0.0002,3]
[346280367,1734863446990,-35548.43050006,0.0002,3]
[346280368,1734863446999,-9671580.41209495,0.0002,2]
[346280369,1734863447246,-1899.07255352,0.0002,2]
[346280370,1734863447344,-1893.96495137,0.0002,2]
[346280371,1734863447356,-920.0,0.0002,2]
[346280372,1734863447372,-3525.95385735,0.0002,2]
[346280373,1734863447387,-150.0,0.00019899,2]
[346280374,1734863447397,-34320.0,0.0002,2]
[346280375,1734863447408,-7237.2251909,0.0002,2]
[346280376,1734863447420,-396.34001336,0.0002,2]
[346280377,1734863447657,-500.0,0.00019178,2]
[346280378,1734863447668,-500.0,0.00019178,2]
[346280379,1734863447677,-625.44,0.00019451,2]
[346280380,1734863447688,-500.0,0.00019452,2]
[346280381,1734863447697,-625.44,0.00019725,2]
[346280382,1734863447707,-500.0,0.00019726,2]
[346280383,1734863447717,-634.5728108,0.0002,2]
[346280384,1734863447728,-1906.73551142,0.0002,2]
[346280385,1734863447739,-324.22562728,0.0002,2]
[346280386,1734863447751,-290.06894817,0.0002,2]
[346280387,1734863447780,-333.48368423,0.0002,2]
[346280388,1734863447799,-2477.12432777,0.0002,2]
[346280389,1734863447829,-171.90945656,0.00013421,2]
[346280390,1734863447839,-3285.08843123,0.0002,2]
[346280391,1734863447851,-1239.50863962,0.0002,2]
[346280392,1734863447862,-354.55000025,0.0002,2]
[346280393,1734863448097,-401.9579998,0.00019178,2]
[346280394,1734863448109,-98.0420002,0.00019178,2]
[346280395,1734863448119,-401.9579998,0.00019178,2]
[346280396,1734863448156,-98.0420002,0.00019178,2]
[346280397,1734863448165,-500.0,0.00019452,2]
[346280398,1734863448175,-351.0624198,0.00019999,2]
[346280399,1734863448187,-274.3775802,0.00019999,2]
[346280400,1734863448197,-1634.74397442,0.0002,2]
[346280401,1734863448380,-4077.0,0.00014,5]
[346280402,1734863448391,-171.90945654,0.00016661,2]
[346280403,1734863448401,-1041.52665488,0.00018874,2]
[346280404,1734863448411,-525.83438185,0.00019178,2]
[346280405,1734863448421,-500.0,0.00019178,2]
[346280406,1734863448431,-5000.0,0.00019451,2]
[346280407,1734863448441,-500.0,0.00019726,2]
[346280408,1734863448451,-1170.0,0.00019863,2]
[346280409,1734863448462,-38501.5122155,0.0002,2]
[346280410,1734863448475,-485915.87302052,0.0002,2]
[346280411,1734863448539,-2508.75625,0.0002,2]
[346280412,1734863448551,-1305.019008,0.0002,2]
[346280413,1734863448564,-665.9187852,0.0002,2]
[346280414,1734863448576,-1074.99997,0.0002,2]
[346280415,1734863448589,-440.47554105,0.0002,2]
[346280416,1734863448601,-4663.97625182,0.0002,2]
[346280417,1734863448613,-163059.9999995,0.0002,2]
[346280419,1734864270803,154.0,0.00010137,2]
[346280424,1734864618578,7900.0,0.00018,30]
[346280439,1734864631779,-450.0,0.00013,2]
[346280440,1734864631789,-435.51999,0.00013281,7]
[346280441,1734864631810,-1229.68179392,0.00013281,7]
[346280442,1734864631819,-200.73122845,0.00014175,2]
[346280443,1734864631830,-600.0,0.00014275,2]
[346280444,1734864631839,-500.0,0.00015,2]
[346280445,1734864631850,-1052.07,0.00016276,2]
[346280446,1734864631860,-550.0,0.00017,2]
[346280447,1734864631869,-3304.986203,0.00017058,2]
[346280448,1734864631879,-500.0,0.00017144,2]
[346280449,1734864631888,-500.0,0.00017144,2]
[346280450,1734864631898,-2119.45,0.00017653,2]
[346280451,1734864631911,-1828.66,0.00017714,2]
[346280452,1734864631920,-150.0,0.00017729,2]
[346280453,1734864631930,-150.0,0.00017729,2]
[346280454,1734864631939,-192.71,0.00017737,2]
[346280455,1734864631948,-250.0,0.00017737,2]
[346280456,1734864631958,-23900.0,0.00017801,2]
[346280457,1734864631968,-1288.4,0.00017943,2]
[346280458,1734864631977,-1000.0,0.00017985,2]
[346280459,1734864631987,-250.0,0.00018066,2]
[346280460,1734864631996,-168.18,0.00018102,2]
[346280461,1734864632005,-500.0,0.0001824,2]
[346280462,1734864632015,-1000.0,0.00018444,2]
[346280463,1734864632024,-1052.07,0.0001854,2]
[346280464,1734864632034,-167.2,0.0001867,2]
[346280465,1734864632043,-152.0,0.00018671,3]
[346280466,1734864632052,-159.89696943,0.00018795,2]
[346280467,1734864632061,-5765.1900354,0.00018873,2]
[346280468,1734864632071,-30000.0,0.00018874,2]
[346280469,1734864632079,-159.89696943,0.00018904,2]
[346280470,1734864632089,-4104.58977164,0.00018904,2]
[346280471,1734864632102,-318.18726035,0.00018904,2]
[346280472,1734864632113,-404.92261432,0.00018904,2]
[346280473,1734864632124,-594.14,0.00018904,2]
[346280474,1734864632135,-578.16035369,0.00018904,2]
[346280475,1734864632146,-433.654,0.00019,2]
[346280476,1734864632155,-159.89696943,0.00019014,2]
[346280477,1734864632164,-300.0,0.00019014,2]
[346280478,1734864632173,-122.92067688,0.0001903,2]
[346280479,1734864632189,-720.31059862,0.0001903,2]
[346280480,1734864632198,-277.25499738,0.00019041,2]
[346280482,1734864632213,-159.74500262,0.00019041,2]
[346280484,1734864632223,-770.39,0.00019041,2]
[346280486,1734864632232,-437.0,0.00019041,2]
[346280487,1734864632241,-298.91,0.00019041,2]
[346280489,1734864632250,-5069.22431464,0.00019078,2]
[346280491,1734864632259,-171.90945654,0.00019078,2]
[346280493,1734864632268,-7849.54779811,0.00019078,2]
[346280494,1734864632278,-1142.7403,0.00019078,2]
[346280495,1734864632287,-856.3901,0.00019078,2]
[346280496,1734864632296,-159.89696943,0.00019096,2]
[346280497,1734864632305,-5069.22431458,0.00019169,2]
[346280498,1734864632314,-7849.54779811,0.00019169,2]
[346280499,1734864632323,-500.0,0.00019173,2]
[346280501,1734864632332,-500.0,0.00019173,2]
[346280503,1734864632341,-500.0,0.00019173,2]
[346280505,1734864632351,-500.0,0.00019173,2]
[346280508,1734864632360,-500.0,0.00019173,2]
[346280511,1734864632369,-226.17391882,0.00019177,5]
[346280513,1734864632379,-500.0,0.00019177,2]
[346280516,1734864632388,-479.26841777,0.00019177,2]
[346280519,1734864632397,-500.0,0.00019178,2]
[346280520,1734864632406,-500.0,0.00019178,2]
[346280522,1734864632414,-500.0,0.00019178,2]
[346280524,1734864632425,-613.11468432,0.00019178,2]
[346280529,1734864632439,-500.0,0.00019178,2]
[346280531,1734864632450,-500.40688826,0.00019178,2]
[346280534,1734864632460,-500.0,0.00019178,2]
[346280536,1734864632469,-500.83151975,0.00019178,2]
[346280538,1734864632479,-425.41308697,0.00019178,2]
[346280540,1734864632490,-500.0,0.00019178,2]
[346280542,1734864632499,-500.0,0.00019178,2]
[346280544,1734864632508,-581.73192119,0.00019178,2]
[346280546,1734864632523,-500.40167058,0.00019178,2]
[346280548,1734864632533,-500.0,0.00019178,2]
[346280550,1734864632543,-500.0,0.00019178,2]
[346280552,1734864632552,-500.0,0.00019178,2]
[346280553,1734864632562,-500.0,0.00019178,2]
[346280554,1734864632571,-500.0,0.00019178,2]
[346280555,1734864632581,-500.0,0.00019178,2]
[346280556,1734864632590,-500.0,0.00019178,2]
[346280557,1734864632600,-500.0,0.00019178,2]
[346280558,1734864632609,-500.0,0.00019178,2]
[346280559,1734864632619,-500.0,0.00019178,2]
[346280560,1734864632831,-500.0,0.00019178,2]
[346280561,1734864632841,-500.0,0.00019178,2]
[346280562,1734864632851,-500.0,0.00019178,2]
[346280563,1734864632861,-500.0,0.00019178,2]
[346280564,1734864632870,-500.0,0.00019178,2]
[346280565,1734864632880,-300.0,0.00019178,2]
[346280566,1734864632890,-500.0,0.00019178,2]
[346280567,1734864632900,-500.0,0.00019178,2]
[346280568,1734864632911,-500.0,0.00019178,2]
[346280569,1734864632920,-500.0,0.00019178,2]
[346280570,1734864632930,-508.55416898,0.00019178,2]
[346280571,1734864632939,-500.0,0.00019178,2]
[346280572,1734864632948,-423.24147425,0.00019178,2]
[346280573,1734864632958,-500.0,0.00019178,2]
[346280574,1734864632967,-500.0,0.00019178,2]
[346280575,1734864632977,-500.0,0.00019178,2]
[346280576,1734864632987,-500.0,0.00019178,2]
[346280577,1734864632997,-500.0,0.00019178,2]
[346280578,1734864633006,-179.33264121,0.00019178,2]
[346280579,1734864633016,-500.0,0.00019178,2]
[346280580,1734864633026,-500.0,0.00019178,2]
[346280581,1734864633035,-500.0,0.00019178,2]
[346280582,1734864633044,-500.0,0.00019178,2]
[346280583,1734864633054,-346.11869577,0.00019178,2]
[346280584,1734864633064,-242.3652811,0.00019178,2]
[346280585,1734864633073,-500.0,0.00019178,2]
[346280586,1734864633082,-500.0,0.00019178,2]
[346280587,1734864633091,-500.0,0.00019178,2]
[346280588,1734864633102,-500.0,0.00019178,2]
[346280589,1734864633111,-500.49164134,0.00019178,2]
[346280590,1734864633121,-500.0,0.00019178,2]
[346280591,1734864633130,-500.0,0.00019178,2]
[346280592,1734864633140,-251.54005912,0.00019178,2]
[346280593,1734864633150,-540.544228,0.00019178,2]
[346280594,1734864633160,-500.0,0.00019178,2]
[346280595,1734864633169,-155.224096,0.00019178,2]
[346280596,1734864633179,-155.063161,0.00019178,2]
[346280597,1734864633188,-625.742807,0.00019178,2]
[346280598,1734864633198,-500.0,0.00019178,2]
[346280599,1734864633207,-500.0,0.00019178,2]
[346280600,1734864633217,-500.0,0.00019178,2]
[346280601,1734864633227,-501.44021088,0.00019178,2]
[346280602,1734864633236,-500.0,0.00019178,2]
[346280603,1734864633245,-500.0,0.00019178,2]
[346280604,1734864633254,-500.0,0.00019178,2]
[346280605,1734864633264,-500.0,0.00019178,2]
[346280606,1734864633273,-500.0,0.00019178,2]
[346280607,1734864633283,-500.0,0.00019178,2]
[346280608,1734864633293,-500.0,0.00019178,2]
[346280609,1734864633302,-500.0,0.00019178,2]
[346280610,1734864633311,-500.0,0.00019178,2]
[346280611,1734864633321,-500.0,0.00019178,2]
[346280612,1734864633331,-500.0,0.00019178,2]
[346280613,1734864633340,-500.0,0.00019178,2]
[346280614,1734864633350,-501.88669741,0.00019178,2]
[346280615,1734864633359,-500.0,0.00019178,2]
[346280616,1734864633368,-500.0,0.00019178,2]
[346280617,1734864633378,-500.0,0.00019178,2]
[346280618,1734864633387,-500.0,0.00019178,2]
[346280619,1734864633396,-476.40221319,0.00019178,2]